fUST/lending_fUST_20250603
["ID","MTS","AMOUNT","RATE_DAILY","PERIOD"]
[363854050,1748899844725,-529.4326171,0.00018934,2]
[363854052,1748899844734,-151.0,0.00018972,2]
[363854054,1748899844744,-529.4326171,0.00019141,2]
[363854056,1748899844754,-440.0,0.00019162,2]
[363854058,1748899844764,-440.0,0.00019162,2]
[363854059,1748899844773,-858.73,0.00019163,2]
[363854061,1748899844783,-440.0,0.00019163,2]
[363854064,1748899844793,-804.7,0.00019163,2]
[363854066,1748899844802,-440.0,0.00019163,2]
[363854070,1748899844840,-603.16,0.00019163,2]
[363854072,1748899844850,-440.0,0.00019163,2]
[363854075,1748899844861,-440.0,0.00019163,2]
[363854077,1748899844870,-440.0,0.00019163,2]
[363854079,1748899844879,-440.0,0.00019163,2]
[363854080,1748899844888,-500.0,0.00019163,2]
[363854082,1748899844898,-500.0,0.00019163,2]
[363854084,1748899844907,-454.99129958,0.00019163,2]
[363854086,1748899844916,-500.0,0.00019163,2]
[363854088,1748899844925,-396.88,0.00019164,2]
[363854090,1748899844934,-615.38,0.00019164,2]
[363854092,1748899844944,-360.0,0.00019164,2]
[363854094,1748899844954,-440.0,0.00019164,2]
[363854096,1748899844964,-440.0,0.00019164,2]
[363854098,1748899844973,-440.0,0.00019164,2]
[363854100,1748899844983,-440.0,0.00019164,2]
[363854102,1748899844992,-457.92,0.00019165,2]
[363854104,1748899845006,-440.0,0.00019165,2]
[363854106,1748899845017,-440.0,0.00019165,2]
[363854108,1748899845026,-623.24,0.00019165,2]
[363854110,1748899845036,-440.0,0.00019165,2]
[363854112,1748899845045,-500.0,0.00019166,2]
[363854113,1748899845055,-500.0,0.00019166,2]
[363854114,1748899845064,-225.0,0.00019178,2]
[363854115,1748899845074,-440.0,0.00019178,2]
[363854116,1748899845083,-420.0,0.00019178,2]
[363854117,1748899845093,-500.0,0.00019178,2]
[363854118,1748899845102,-500.0,0.00019178,2]
[363854119,1748899845111,-500.0,0.00019178,2]
[363854120,1748899845120,-488.59750136,0.00019178,2]
[363854121,1748899845130,-176.752158,0.00019178,2]
[363854122,1748899845140,-529.4326171,0.00019348,2]
[363854123,1748899845149,-440.0,0.00019436,2]
[363854124,1748899845159,-440.0,0.00019436,2]
[363854125,1748899845169,-858.73,0.00019437,2]
[363854126,1748899845179,-440.0,0.00019437,2]
[363854127,1748899845188,-804.7,0.00019437,2]
[363854128,1748899845198,-440.0,0.00019437,2]
[363854129,1748899845208,-603.16,0.00019437,2]
[363854130,1748899845217,-440.0,0.00019437,2]
[363854131,1748899845227,-179.2,0.00019437,2]
[363854132,1748899845236,-440.0,0.00019437,2]
[363854133,1748899845246,-289.86,0.00019437,2]
[363854134,1748899845255,-615.38,0.00019438,2]
[363854135,1748899845265,-364.77,0.00019438,2]
[363854136,1748899845275,-440.0,0.00019438,2]
[363854137,1748899845284,-440.0,0.00019438,2]
[363854138,1748899845294,-440.0,0.00019438,2]
[363854139,1748899845304,-440.0,0.00019439,2]
[363854140,1748899845318,-440.0,0.00019439,2]
[363854141,1748899845329,-623.24,0.00019439,2]
[363854142,1748899845340,-440.0,0.00019439,2]
[363854143,1748899845352,-600.0,0.00019473,2]
[363854144,1748899845363,-500.0,0.00019473,2]
[363854145,1748899845373,-462.021599,0.00019473,2]
[363854146,1748899845383,-500.0,0.00019489,2]
[363854147,1748899845393,-379787.89401595,0.000195,2]
[363854148,1748899845402,-529.4326171,0.00019555,2]
[363854149,1748899845411,-633.51723044,0.0001958,2]
[363854150,1748899845421,-500.0,0.0001958,2]
[363854151,1748899845430,-528.45431058,0.0001958,2]
[363854152,1748899845440,-273.548,0.00019633,2]
[363854153,1748899845450,-3832.97,0.00019658,2]
[363854154,1748899845459,-440.0,0.0001971,2]
[363854155,1748899845469,-440.0,0.0001971,2]
[363854156,1748899845479,-858.73,0.00019711,2]
[363854157,1748899845489,-440.0,0.00019711,2]
[363854158,1748899845499,-804.7,0.00019711,2]
[363854159,1748899845510,-440.0,0.00019711,2]
[363854160,1748899845520,-603.16,0.00019711,2]
[363854161,1748899845530,-440.0,0.00019711,2]
[363854162,1748899845540,-440.0,0.00019711,2]
[363854163,1748899845550,-615.38,0.00019712,2]
[363854164,1748899845560,-440.0,0.00019712,2]
[363854165,1748899845570,-440.0,0.00019712,2]
[363854166,1748899845580,-440.0,0.00019712,2]
[363854167,1748899845589,-172.91760574,0.00019712,2]
[363854168,1748899845600,-440.0,0.00019713,2]
[363854169,1748899845609,-282.11,0.00019713,2]
[363854170,1748899845620,-623.24,0.00019713,2]
[363854171,1748899845630,-321.90475396,0.00019713,2]
[363854172,1748899845640,-204.148897,0.00019714,2]
[363854173,1748899845650,-529.4326171,0.00019762,2]
[363854174,1748899845660,-587.0,0.00019929,2]
[363854175,1748899845670,-700.0,0.00019964,2]
[363854176,1748899845680,-529.4326171,0.00019969,2]
[363854177,1748899845690,-440.0,0.00019984,2]
[363854178,1748899845699,-440.0,0.00019984,2]
[363854179,1748899845709,-858.73,0.00019985,2]
[363854180,1748899845722,-440.0,0.00019985,2]
[363854181,1748899845732,-804.7,0.00019985,2]
[363854182,1748899845742,-440.0,0.00019985,2]
[363854183,1748899845751,-603.16,0.00019985,2]
[363854184,1748899845761,-440.0,0.00019985,2]
[363854185,1748899845771,-440.0,0.00019985,2]
[363854186,1748899845781,-615.38,0.00019986,2]
[363854187,1748899845790,-440.0,0.00019986,2]
[363854188,1748899845800,-440.0,0.00019986,2]
[363854189,1748899845810,-440.0,0.00019986,2]
[363854190,1748899845820,-440.0,0.00019987,2]
[363854191,1748899845830,-623.24,0.00019987,2]
[363854192,1748899845840,-384.09246953,0.00020021,2]
[363854193,1748899845850,-1003.73758269,0.00020128,2]
[363854194,1748899845860,-529.4326171,0.00020176,2]
[363854195,1748899845870,-440.0,0.00020258,2]
[363854196,1748899845879,-440.0,0.00020258,2]
[363854197,1748899845889,-858.73,0.00020259,2]
[363854199,1748899845899,-373.28,0.00020259,2]
[363854201,1748899845909,-804.7,0.00020259,2]
[363854202,1748899845918,-440.0,0.00020259,2]
[363854204,1748899845928,-603.16,0.00020259,2]
[363854206,1748899845939,-440.0,0.00020259,2]
[363854208,1748899845948,-440.0,0.00020259,2]
[363854210,1748899845959,-615.38,0.0002026,2]
[363854212,1748899845969,-440.0,0.0002026,2]
[363854214,1748899845979,-440.0,0.0002026,2]
[363854216,1748899845992,-440.0,0.0002026,2]
[363854218,1748899846006,-440.0,0.00020261,2]
[363854220,1748899846016,-623.24,0.00020261,2]
[363854222,1748899846026,-500.0,0.00020313,2]
[363854224,1748899846035,-500.0,0.00020354,2]
[363854226,1748899846046,-500.0,0.00020354,2]
[363854228,1748899846055,-500.0,0.00020354,2]
[363854230,1748899846065,-500.0,0.00020354,2]
[363854231,1748899846075,-500.0,0.00020354,2]
[363854233,1748899846085,-500.0,0.00020354,2]
[363854235,1748899846095,-500.0,0.00020354,2]
[363854237,1748899846105,-207.4,0.00020354,2]
[363854239,1748899846115,-500.0,0.00020354,2]
[363854241,1748899846124,-500.0,0.00020354,2]
[363854243,1748899846133,-500.0,0.00020354,2]
[363854244,1748899846143,-500.0,0.00020354,2]
[363854246,1748899846153,-500.0,0.00020354,2]
[363854248,1748899846162,-500.0,0.00020354,2]
[363854250,1748899846173,-500.0,0.00020354,2]
[363854252,1748899846183,-500.0,0.00020354,2]
[363854254,1748899846192,-500.0,0.00020354,2]
[363854256,1748899846202,-500.0,0.00020354,2]
[363854258,1748899846211,-500.0,0.00020354,2]
[363854260,1748899846220,-500.0,0.00020354,2]
[363854262,1748899846230,-5000.0,0.00020354,2]
[363854263,1748899846239,-500.0,0.00020354,2]
[363854265,1748899846248,-500.0,0.00020354,2]
[363854267,1748899846258,-2817.80628261,0.00020354,2]
[363854269,1748899846268,-500.0,0.00020354,2]
[363854271,1748899846278,-500.0,0.00020354,2]
[363854273,1748899846288,-500.0,0.00020354,2]
[363854275,1748899846297,-500.0,0.00020354,2]
[363854277,1748899846306,-500.0,0.00020354,2]
[363854279,1748899846316,-500.0,0.00020354,2]
[363854281,1748899846327,-529.4326171,0.00020383,3]
[363854283,1748899846336,-5110.63,0.00020513,2]
[363854285,1748899846345,-440.0,0.00020532,2]
[363854287,1748899846355,-440.0,0.00020532,2]
[363854289,1748899846365,-858.73,0.00020533,2]
[363854291,1748899846377,-804.7,0.00020533,2]
[363854293,1748899846386,-440.0,0.00020533,2]
[363854295,1748899846396,-603.16,0.00020533,2]
[363854297,1748899846406,-440.0,0.00020533,2]
[363854299,1748899846416,-440.0,0.00020533,2]
[363854301,1748899846426,-500.0,0.00020534,2]
[363854302,1748899846436,-615.38,0.00020534,2]
[363854304,1748899846445,-160.0,0.00020534,2]
[363854306,1748899846455,-440.0,0.00020534,2]
[363854308,1748899846466,-234.47922588,0.00020534,2]
[363854310,1748899846475,-181.04,0.00020534,2]
[363854312,1748899846487,-440.0,0.00020535,2]
[363854314,1748899846497,-623.24,0.00020535,2]
[363854316,1748899846507,-529.4326171,0.0002059,3]
[363854318,1748899846517,-877.98,0.000206,2]
[363854320,1748899846527,-4183.44,0.000206,2]
[363854322,1748899846537,-28799.54,0.000206,2]
[363854324,1748899846547,-265.70492485,0.00020717,2]
[363854326,1748899846556,-172.91760574,0.00020751,2]
[363854328,1748899846566,-529.4326171,0.00020797,4]
[363854330,1748899846575,-440.0,0.00020806,2]
[363854332,1748899846586,-440.0,0.00020806,2]
[363854334,1748899846595,-858.73,0.00020807,2]
[363854336,1748899846605,-804.7,0.00020807,2]
[363854338,1748899846615,-440.0,0.00020807,2]
[363854339,1748899846625,-603.16,0.00020807,2]
[363854341,1748899846635,-440.0,0.00020807,2]
[363854343,1748899846644,-196.48,0.00020807,2]
[363854345,1748899846654,-615.38,0.00020808,2]
[363854347,1748899846663,-440.0,0.00020808,2]
[363854349,1748899846673,-344.98,0.00020809,2]
[363854351,1748899846682,-623.24,0.00020809,2]
[363854353,1748899846691,-529.4326171,0.00021003,4]
[363854355,1748899846701,-500.0,0.00021059,2]
[363854357,1748899846711,-700.0,0.0002106,2]
[363854359,1748899846721,-440.0,0.0002108,2]
[363854361,1748899846730,-440.0,0.0002108,2]
[363854363,1748899846740,-858.73,0.00021081,2]
[363854365,1748899846751,-804.7,0.00021081,2]
[363854367,1748899846761,-440.0,0.00021081,2]
[363854369,1748899846771,-603.16,0.00021081,2]
[363854371,1748899846781,-440.0,0.00021081,2]
[363854373,1748899846790,-368.69,0.00021082,2]
[363854375,1748899846800,-615.38,0.00021082,2]
[363854377,1748899846810,-440.0,0.00021082,2]
[363854379,1748899846820,-623.24,0.00021083,2]
[363854381,1748899846830,-971.1,0.00021203,2]
[363854383,1748899846839,-529.4326171,0.0002121,4]
[363854385,1748899846849,-971.1,0.00021303,2]
[363854387,1748899846859,-440.0,0.00021354,2]
[363854389,1748899846868,-440.0,0.00021354,2]
[363854391,1748899846878,-858.73,0.00021355,2]
[363854393,1748899846888,-804.7,0.00021355,2]
[363854395,1748899846897,-440.0,0.00021355,2]
[363854397,1748899846907,-603.16,0.00021355,2]
[363854399,1748899846917,-440.0,0.00021355,2]
[363854401,1748899846927,-615.38,0.00021356,2]
[363854403,1748899846937,-461.72,0.00021356,2]
[363854405,1748899846947,-623.24,0.00021357,2]
[363854406,1748899846957,-6388.28,0.00021367,2]
[363854409,1748899846967,-971.1,0.00021403,2]
[363854410,1748899846977,-529.4326171,0.00021417,5]
[363854413,1748899846987,-971.1,0.00021503,2]
[363854414,1748899846999,-971.1,0.00021603,2]
[363854416,1748899847008,-529.4326171,0.00021624,5]
[363854418,1748899847019,-565.01,0.00021628,2]
[363854420,1748899847028,-440.0,0.00021628,2]
[363854422,1748899847038,-858.73,0.00021629,2]
[363854424,1748899847048,-804.7,0.00021629,2]
[363854426,1748899847058,-440.0,0.00021629,2]
[363854429,1748899847069,-603.16,0.00021629,2]
[363854430,1748899847078,-398.3,0.00021629,2]
[363854432,1748899847088,-615.38,0.0002163,2]
[363854434,1748899847098,-623.24,0.00021631,2]
[363854436,1748899847108,-971.1,0.00021703,2]
[363854438,1748899847118,-215.0738,0.00021723,2]
[363854441,1748899847128,-823.0,0.00021773,2]
[363854443,1748899847139,-4183.44,0.000218,2]
[363854445,1748899847148,-28799.54,0.000218,2]
[363854447,1748899847158,-971.1,0.00021803,2]
[363854449,1748899847168,-529.4326171,0.00021831,6]
[363854451,1748899847178,-5094.70234252,0.000219,2]
[363854453,1748899847188,-440.0,0.00021902,2]
[363854455,1748899847198,-971.1,0.00021903,2]
[363854457,1748899847207,-858.73,0.00021903,2]
[363854459,1748899847218,-804.7,0.00021903,2]
[363854461,1748899847227,-570.86,0.00021903,2]
[363854463,1748899847237,-603.16,0.00021903,2]
[363854465,1748899847246,-615.38,0.00021904,2]
[363854467,1748899847256,-160.0,0.00021904,2]
[363854469,1748899847266,-623.24,0.00021905,2]
[363854471,1748899847276,-500.0,0.00021917,2]
[363854473,1748899847286,-150.0,0.00021918,2]
[363854475,1748899847296,-500.0,0.00021991,2]
[363854477,1748899847307,-416343.7748498,0.00021999,2]
[363854480,1748899847328,-451.58620927,0.00016698,2]
[363854482,1748899847337,-16383.50879073,0.00021999,2]
[363854484,1748899847350,-5113.02886269,0.00021999,2]
[363854487,1748899847366,-440.0,0.00017518,2]
[363854489,1748899847376,-2682.1875981,0.00021999,2]
[363854491,1748899847388,-27904.25609347,0.00021999,2]
[363854494,1748899847400,-2698.49883721,0.00021999,2]
[363854511,1748899847561,-430.0,0.00016696,2]
[363854513,1748899847573,-430.0,0.00016696,2]
[363854515,1748899847583,-316.51990883,0.00016696,2]
[363854517,1748899847594,-470.0,0.00016698,2]
[363854518,1748899847604,-235.59910574,0.00016698,2]
[363854519,1748899847616,-214.40089426,0.00016698,2]
[363854520,1748899847626,-205.59910574,0.00016698,2]
[363854521,1748899847671,-432.27280839,0.00016696,2]
[363854522,1748899847681,-430.0,0.00016696,2]
[363854523,1748899847691,-294.40089426,0.00016698,2]
[363854524,1748899847701,-500.0,0.00016972,2]
[363854525,1748899847712,-440.0,0.00017792,2]
[363854526,1748899847723,-440.0,0.00018066,2]
[363854527,1748899847734,-500.0,0.00018094,2]
[363854528,1748899847849,-440.0,0.0001834,2]
[363854530,1748899847859,-160.0,0.0001835,2]
[363854532,1748899847869,-376.33,0.00018614,2]
[363854534,1748899847878,-394.86807091,0.00019166,2]
[363854537,1748899847890,-105.13192909,0.00019166,2]
[363854539,1748899847899,-172.91760574,0.00021789,2]
[363854540,1748899847908,-22272.74701862,0.00021999,2]
[363854543,1748899847920,-21224.76068339,0.00021999,2]
[363854610,1748899916947,373.023908,0.00013699,2]
[363854615,1748900738091,-2107.95229531,0.00016266,2]
[363854616,1748900738112,-300.0,0.00016694,2]
[363854617,1748900738132,-300.0,0.00016694,2]
[363854618,1748900738153,-324.96217928,0.00016695,2]
[363854620,1748900753387,500.0,0.000228,120]
[363854621,1748900754072,500.0,0.000228,120]
[363854622,1748900754841,500.0,0.000228,120]
[363854623,1748900755608,500.0,0.000228,120]
[363854624,1748900756386,500.0,0.000228,120]
[363854625,1748900757178,500.0,0.000228,120]
[363854626,1748900757961,500.0,0.000228,120]
[363854627,1748900758740,500.0,0.000228,120]
[363854628,1748900759545,500.0,0.000228,120]
[363854629,1748900760334,500.0,0.000228,120]
[363854630,1748900761109,500.0,0.000228,120]
[363854631,1748900761876,500.0,0.000228,120]
[363854632,1748900762662,500.0,0.000228,120]
[363854633,1748900763753,500.0,0.000228,120]
[363854634,1748900764235,500.0,0.000228,120]
[363854635,1748900765006,500.0,0.000228,120]
[363854636,1748900765808,500.0,0.000228,120]
[363854637,1748900766631,500.0,0.000228,120]
[363854638,1748900767404,500.0,0.000228,120]
[363854639,1748900768176,500.0,0.000228,120]
[363854640,1748900768942,500.0,0.000228,120]
[363854641,1748900769732,500.0,0.000228,120]
[363854642,1748900770966,500.0,0.000228,120]
[363854643,1748900771739,500.0,0.000228,120]
[363854644,1748900772652,500.0,0.000228,120]
[363854645,1748900773423,500.0,0.000228,120]
[363854646,1748900774239,500.0,0.000228,120]
[363854647,1748900775420,500.0,0.000228,120]
[363854648,1748900776205,500.0,0.000228,120]
[363854649,1748900776959,500.0,0.000228,120]
[363854650,1748900777866,500.0,0.000228,120]
[363854651,1748900778634,155.47,0.000228,120]
[363854652,1748900791133,200.0,0.00023455,120]
[363854655,1748900852583,150.5,0.0002329,120]
[363854656,1748900853035,150.5,0.0002328,120]
[363854657,1748900853488,275.06,0.0002327,120]
[363854658,1748900911207,200.0,0.00022878,120]
[363854659,1748900914196,300.30660498,0.00024657,120]
[363854660,1748900973182,200.0,0.00023677,120]
[363854662,1748901003172,1160.75,0.00022,120]
[363854664,1748901031310,200.0,0.00023284,120]
[363854699,1748901037981,-272.5430213,0.00015696,2]
[363854707,1748901038050,-27.4569787,0.00015696,2]
[363854709,1748901038060,-3494.29905056,0.00015697,2]
[363854716,1748901038113,-21405.70094944,0.00015697,2]
[363854718,1748901038122,-163.2206531,0.00015891,2]
[363854720,1748901038132,-172.91760574,0.00016595,2]
[363854722,1748901038142,-188.79891354,0.00016595,2]
[363854724,1748901038151,-440.0,0.00016694,2]
[363854726,1748901038160,-440.0,0.00016694,2]
[363854728,1748901038170,-440.0,0.00016694,2]
[363854730,1748901038179,-440.0,0.00016694,2]
[363854732,1748901038189,-440.0,0.00016694,2]
[363854734,1748901038199,-500.0,0.00016694,2]
[363854736,1748901038209,-500.0,0.00016694,2]
[363854738,1748901038219,-220.66148968,0.00016694,2]
[363854740,1748901038228,-639.50710714,0.00016694,2]
[363854742,1748901038237,-500.0,0.00016694,2]
[363854744,1748901038246,-500.0,0.00016694,2]
[363854746,1748901038256,-500.0,0.00016694,2]
[363854748,1748901038266,-500.0,0.00016694,2]
[363854750,1748901038275,-500.0,0.00016694,2]
[363854752,1748901038284,-500.0,0.00016694,2]
[363854754,1748901038294,-500.0,0.00016694,2]
[363854756,1748901038305,-500.0,0.00016694,2]
[363854758,1748901038314,-500.0,0.00016694,2]
[363854760,1748901038324,-246.13694756,0.00016694,2]
[363854776,1748901038477,-500.0,0.00016694,2]
[363854778,1748901038487,-430.0,0.00016694,2]
[363854780,1748901038497,-105.03782072,0.00016695,2]
[363854782,1748901038507,-430.0,0.00016695,2]
[363854784,1748901038516,-500.0,0.00016695,2]
[363854786,1748901038525,-430.0,0.00016695,2]
[363854788,1748901038535,-204.24912166,0.00016695,2]
[363854790,1748901038545,-471.55314848,0.00016695,2]
[363854792,1748901038557,-404.48283474,0.00016695,2]
[363854794,1748901038566,-430.0,0.00016695,2]
[363854796,1748901038576,-440.0,0.00016695,2]
[363854798,1748901038586,-430.0,0.00016695,2]
[363854800,1748901038595,-439.86840454,0.00016695,2]
[363854802,1748901038605,-430.0,0.00016695,2]
[363854804,1748901038614,-440.0,0.00016695,2]
[363854806,1748901038624,-430.0,0.00016695,2]
[363854808,1748901038633,-430.0,0.00016695,2]
[363854810,1748901038643,-440.0,0.00016695,2]
[363854812,1748901038653,-430.0,0.00016695,2]
[363854814,1748901038663,-430.0,0.00016695,2]
[363854816,1748901038672,-430.0,0.00016695,2]
[363854818,1748901038682,-430.0,0.00016695,2]
[363854820,1748901038692,-314.73981873,0.00016695,2]
[363854822,1748901038702,-430.0,0.00016695,2]
[363854824,1748901038713,-516.8156173,0.00016695,2]
[363854827,1748901038723,-440.0,0.00016695,2]
[363854829,1748901038732,-440.0,0.00016695,2]
[363854830,1748901038742,-440.0,0.00016695,2]
[363854832,1748901038751,-440.0,0.00016695,2]
[363854834,1748901038761,-430.0,0.00016695,2]
[363854837,1748901038772,-440.0,0.00016695,2]
[363854839,1748901038781,-430.0,0.00016695,2]
[363854841,1748901038791,-440.0,0.00016695,2]
[363854843,1748901038801,-450.0,0.00016695,2]
[363854845,1748901038811,-440.0,0.00016695,2]
[363854847,1748901038820,-440.0,0.00016695,2]
[363854849,1748901038829,-430.0,0.00016695,2]
[363854851,1748901038839,-440.0,0.00016695,2]
[363854853,1748901038849,-430.0,0.00016695,2]
[363854855,1748901038859,-440.0,0.00016695,2]
[363854857,1748901038868,-440.0,0.00016695,2]
[363854859,1748901038879,-440.0,0.00016695,2]
[363854860,1748901038888,-440.0,0.00016695,2]
[363854863,1748901038901,-440.0,0.00016695,2]
[363854865,1748901038910,-430.0,0.00016695,2]
[363854867,1748901038920,-440.0,0.00016695,2]
[363854869,1748901038929,-440.0,0.00016695,2]
[363854871,1748901038944,-289.2560603,0.00016695,2]
[363854873,1748901038953,-440.0,0.00016695,2]
[363854875,1748901038963,-440.0,0.00016695,2]
[363854877,1748901038972,-430.0,0.00016695,2]
[363854879,1748901038981,-430.0,0.00016695,2]
[363854881,1748901038991,-430.0,0.00016695,2]
[363854883,1748901039000,-440.0,0.00016695,2]
[363854885,1748901039009,-440.0,0.00016695,2]
[363854886,1748901039019,-430.0,0.00016695,2]
[363854889,1748901039028,-440.0,0.00016695,2]
[363854890,1748901039038,-440.0,0.00016695,2]
[363854893,1748901039050,-440.0,0.00016695,2]
[363854895,1748901039059,-430.0,0.00016695,2]
[363854897,1748901039068,-390.0,0.00016695,2]
[363854899,1748901039087,-440.0,0.00016695,2]
[363854901,1748901039097,-440.0,0.00016695,2]
[363854903,1748901039106,-440.0,0.00016695,2]
[363854905,1748901039116,-440.0,0.00016695,2]
[363854907,1748901039126,-390.0,0.00016695,2]
[363854909,1748901039137,-440.0,0.00016696,2]
[363854911,1748901039146,-446.74968782,0.00016696,2]
[363854913,1748901039155,-470.0,0.00016696,2]
[363854915,1748901039166,-502.02,0.00016696,2]
[363854917,1748901039176,-440.0,0.00016696,2]
[363854919,1748901039185,-440.0,0.00016696,2]
[363854921,1748901039195,-280.0,0.00016696,2]
[363854923,1748901039204,-220.0,0.00016696,2]
[363854925,1748901039213,-430.0,0.00016696,2]
[363854927,1748901039223,-440.0,0.00016696,2]
[363854929,1748901039233,-440.0,0.00016696,2]
[363854931,1748901039243,-430.0,0.00016696,2]
[363854933,1748901039252,-500.0,0.00016696,2]
[363854935,1748901039261,-440.0,0.00016696,2]
[363854937,1748901039271,-500.0,0.00016696,2]
[363854939,1748901039282,-500.0,0.00016696,2]
[363854941,1748901039291,-440.49,0.00016696,2]
[363854943,1748901039301,-390.0,0.00016696,2]
[363854945,1748901039310,-430.0,0.00016696,2]
[363854947,1748901039321,-430.0,0.00016696,2]
[363854949,1748901039330,-440.0,0.00016696,2]
[363854952,1748901039350,-450.0,0.00016696,2]
[363854954,1748901039361,-430.0,0.00016696,2]
[363854957,1748901039371,-430.0,0.00016696,2]
[363854959,1748901039382,-440.0,0.00016696,2]
[363854960,1748901039393,-430.0,0.00016696,2]
[363854962,1748901039403,-440.0,0.00016696,2]
[363854965,1748901039413,-430.0,0.00016696,2]
[363854967,1748901039425,-430.0,0.00016696,2]
[363854969,1748901039435,-430.0,0.00016696,2]
[363854971,1748901039445,-500.0,0.00016696,2]
[363854973,1748901039455,-430.0,0.00016696,2]
[363854975,1748901039468,-470.0,0.00016696,2]
[363854977,1748901039478,-430.0,0.00016696,2]
[363854979,1748901039488,-440.0,0.00016696,2]
[363854981,1748901039498,-470.0,0.00016696,2]
[363854983,1748901039507,-430.0,0.00016696,2]
[363854985,1748901039517,-470.0,0.00016696,2]
[363854987,1748901039527,-430.0,0.00016696,2]
[363854989,1748901039538,-470.0,0.00016696,2]
[363854991,1748901039548,-470.0,0.00016696,2]
[363854993,1748901039558,-473.24580113,0.00016696,2]
[363854995,1748901039567,-430.0,0.00016696,2]
[363854997,1748901039577,-510.38329689,0.00016696,2]
[363854999,1748901039588,-440.0,0.00016696,2]
[363855001,1748901039600,-470.0,0.00016696,2]
[363855003,1748901039610,-440.0,0.00016696,2]
[363855005,1748901039620,-390.0,0.00016696,2]
[363855007,1748901039630,-440.0,0.00016696,2]
[363855010,1748901039639,-440.0,0.00016696,2]
[363855013,1748901039649,-430.0,0.00016696,2]
[363855015,1748901039659,-440.0,0.00016696,2]
[363855017,1748901039668,-440.0,0.00016696,2]
[363855019,1748901039678,-440.0,0.00016696,2]
[363855021,1748901039688,-440.0,0.00016696,2]
[363855024,1748901039699,-446.26507903,0.00016696,2]
[363855026,1748901039709,-440.0,0.00016696,2]
[363855027,1748901039718,-440.0,0.00016696,2]
[363855030,1748901039728,-430.0,0.00016696,2]
[363855032,1748901039740,-450.0,0.00016696,2]
[363855034,1748901039749,-430.0,0.00016696,2]
[363855036,1748901039759,-440.0,0.00016696,2]
[363855038,1748901039769,-440.0,0.00016696,2]
[363855040,1748901039778,-505.11932332,0.00016696,2]
[363855042,1748901039788,-440.0,0.00016696,2]
[363855044,1748901039797,-430.0,0.00016696,2]
[363855046,1748901039807,-440.0,0.00016696,2]
[363855048,1748901039817,-430.0,0.00016696,2]
[363855050,1748901039826,-270.0,0.00016696,2]
[363855052,1748901039835,-430.0,0.00016696,2]
[363855054,1748901039844,-440.0,0.00016696,2]
[363855056,1748901039854,-440.0,0.00016696,2]
[363855058,1748901039864,-401.9812149,0.00016696,2]
[363855060,1748901039873,-430.0,0.00016696,2]